bitfinex-derivatives/quotes_ETHF0:USTF0_20250316
["timestamp","ask_amount","ask_price","bid_price","bid_amount"]
[1742125406020,15.2001,1873.3,1872.7,3.2078]
[1742125406218,15.2001,1873.3,1873.2,1.06767]
[1742125406518,15.2001,1873.3,1873.1,1.06768]
[1742125406719,15.2001,1873.3,1873.1,1.07569089]
[1742125406914,15.2001,1873.3,1873.1,0.00801089]
[1742125407110,15.2001,1873.3,1873.2,1.06767]
[1742125408712,3.2078,1873.3,1873.2,1.06767]
[1742125408913,0.00801089,1873.4,1873.1,4.27101089]
[1742125409115,16.4658,1873.2,1873.1,0.00801089]
[1742125409316,16.4658,1873.2,1873.0,1.06776]
[1742125409518,7.4748,1873.1,1872.6,1.06798]
[1742125409813,7.4748,1873.1,1872.3,3.2078]
[1742125409814,3.2078,1872.8,1872.7,1.06795]
[1742125410012,7.4758,1872.8,1872.4,1.06807]
[1742125410319,16.4658,1872.7,1872.6,1.06801]
[1742125410918,9.6222,1872.7,1872.6,1.06801]
[1742125411218,5.7524,1873.1,1873.0,1.06778]
[1742125411416,5.7524,1873.1,1873.0,4.27558]
[1742125411614,0.00801089,1873.4,1873.3,1.06761]
[1742125418025,3.21581089,1873.4,1872.9,2.66957]
[1742125418224,14.4226,1873.3,1873.2,1.06767]
[1742125418430,11.2148,1873.3,1873.2,1.06767]
[1742125418822,14.4226,1873.3,1873.2,1.06767]
[1742125419526,14.4226,1873.3,1873.1,1.06768]
[1742125419732,14.4226,1873.3,1873.2,1.06767]
[1742125420229,11.2148,1873.3,1873.2,1.06767]
[1742125422342,11.2148,1873.3,1872.9,7.4598]
[1742125422548,14.4226,1873.3,1872.9,7.4598]
[1742125422744,14.4226,1873.3,1872.9,3.2078]
[1742125422950,14.4226,1873.3,1873.0,1.06776]
[1742125423245,14.4226,1873.3,1873.0,1.06777]
[1742125423447,14.4226,1873.3,1872.9,3.2078]
[1742125423950,3.2078,1873.1,1872.7,18.04317]
[1742125424149,18.5624,1873.0,1872.9,1.06784]
[1742125424350,18.5624,1873.0,1872.8,1.06785]
[1742125424749,18.5624,1873.0,1872.7,1.06793]
[1742125424949,19.63021,1873.0,1872.7,1.06794]
[1742125425154,1.06797,1872.7,1872.4,1.07609089]
[1742125425453,15.54556,1872.6,1872.4,0.00801089]
[1742125425641,15.54556,1872.6,1872.4,1.07613089]
[1742125425842,14.4775,1872.6,1872.4,0.00801089]
[1742125426047,14.4775,1872.6,1871.9,14.6324]
[1742125426346,3.2078,1872.3,1872.1,1.06826]
[1742125426546,11.2697,1872.2,1872.1,1.06829]
[1742125426738,18.0143,1872.2,1871.7,17.30371]
[1742125426939,19.08255,1872.2,1872.0,1.06835]
[1742125427139,19.08255,1872.2,1871.9,1.07638089]
[1742125427343,19.08255,1872.2,1872.0,1.06833]
[1742125427554,18.0143,1872.2,1872.1,1.06829]
[1742125427749,19.08254,1872.2,1871.9,1.07638089]
[1742125427940,19.08259,1872.2,1871.9,1.07640089]
[1742125428143,18.0143,1872.2,1871.9,1.07637089]
[1742125428447,18.0143,1872.2,1871.9,0.00801089]
[1742125428648,3.2078,1872.0,1871.5,2.67159]
[1742125428958,11.6451,1871.9,1871.7,1.06847]
[1742125429249,1.06856,1871.7,1871.4,1.06867]
[1742125429453,14.8529,1871.6,1871.2,13.87802]
[1742125429756,22.1137,1871.6,1871.2,11.206]
[1742125429955,22.1137,1871.6,1871.5,1.06864]
[1742125430253,22.1137,1871.6,1871.4,1.06865]
[1742125431144,22.1137,1871.6,1871.2,11.21401089]
[1742125431345,22.1137,1871.6,1871.4,1.06867]
[1742125431655,4.27605,1872.2,1871.9,1.06839]
[1742125431844,9.8216,1872.2,1872.0,1.06834]
[1742125432246,9.8216,1872.2,1871.7,10.9533]
[1742125432650,1.06832,1872.1,1871.8,1.06845]
[1742125432850,1.06835,1872.0,1871.7,12.02178]
[1742125433047,10.7314,1872.1,1871.7,10.9533]
[1742125433354,10.7314,1872.1,1872.0,1.06835]
[1742125433948,10.7314,1872.1,1871.9,1.06836]
[1742125434148,10.7314,1872.1,1871.7,15.2296]
[1742125434349,10.7314,1872.1,1871.7,14.1611]
[1742125434550,3.2078,1872.0,1871.7,12.0218]
[1742125434853,11.2434,1871.9,1871.8,1.06846]
[1742125435557,9.8216,1872.2,1871.9,1.06836]
[1742125435749,11.2434,1872.1,1871.9,1.06836]
[1742125435951,0.00801089,1872.3,1872.2,1.06824]
[1742125436148,11.25141089,1872.3,1872.2,1.06824]
[1742125436350,0.00801089,1872.3,1872.2,1.06824]
[1742125438151,0.00801089,1872.3,1872.2,5.27824]
[1742125438347,0.00801089,1872.3,1872.2,17.01284]
[1742125438957,0.00801089,1872.3,1872.2,12.80284]
[1742125439354,3.21581089,1872.3,1872.1,1.06827]
[1742125439656,14.4105,1872.2,1872.1,1.06827]
[1742125440155,3.2078,1872.2,1872.1,1.06827]
[1742125440357,0.00801089,1872.3,1872.2,1.06824]
[1742125441459,0.00801089,1872.3,1872.2,12.40174]
[1742125442051,8.9e-07,1872.3,1872.2,14.90174]
[1742125444251,8.9e-07,1872.3,1872.2,12.40174]
[1742125444454,8.9e-07,1872.3,1872.2,14.90174]
[1742125445460,8.9e-07,1872.3,1872.2,16.61574]
[1742125446360,8.9e-07,1872.3,1872.2,16.61174]
[1742125447661,8.9e-07,1872.3,1872.2,19.11174]
[1742125448258,8.9e-07,1872.3,1872.2,14.90174]
[1742125448461,8.9e-07,1872.3,1872.2,19.11174]
[1742125448847,5.3528,1873.3,1873.2,1.06767]
[1742125450062,0.00801089,1873.4,1873.3,1.06761]
[1742125450266,0.00801089,1873.4,1873.3,8.48441]
[1742125451761,0.00801089,1873.4,1873.3,1.06761]
[1742125452359,0.00801089,1873.4,1873.1,4.28351089]
[1742125452562,3.2078,1873.3,1873.1,0.00801089]
[1742125452861,5.6512,1873.2,1873.1,1.07573089]
[1742125453263,5.6512,1873.2,1873.1,0.00801089]
[1742125453662,5.6512,1873.2,1872.7,3.2078]
[1742125453961,3.2078,1873.1,1873.0,1.06778]
[1742125454556,5.6512,1873.2,1873.1,1.06772]
[1742125455658,3.21581089,1873.4,1873.3,1.06761]
[1742125456562,0.00801089,1873.4,1873.3,5.27661]
[1742125456763,0.00801089,1873.4,1873.3,16.04371]
[1742125459056,0.00801089,1873.4,1873.3,18.54371]
[1742125459259,0.00801089,1873.4,1873.3,16.04371]
[1742125459463,8.9e-07,1873.4,1873.3,18.54371]
[1742125459661,8.9e-07,1873.4,1873.3,28.69131]
[1742125459965,8.9e-07,1873.4,1873.3,16.04371]
[1742125460156,8.9e-07,1873.4,1873.3,1.06761]
[1742125460668,8.9e-07,1873.4,1873.2,1.06763]
[1742125460861,17.94320089,1873.4,1873.3,1.06761]
[1742125461160,17.94320089,1873.4,1873.2,1.06764]
[1742125461366,5.4596,1873.3,1873.2,1.06767]
[1742125461562,16.4415,1873.3,1873.2,1.06767]
[1742125462362,16.4415,1873.3,1873.0,0.00801089]
[1742125462668,3.2078,1873.2,1873.0,0.00801089]
[1742125462866,10.9819,1873.1,1873.0,0.00801089]
[1742125463962,10.9819,1873.1,1873.0,1.07579089]
[1742125464769,10.9819,1873.1,1873.0,0.00801089]
[1742125464964,10.9819,1873.1,1873.0,1.07579089]
[1742125465972,10.9819,1873.1,1873.0,11.93549089]
[1742125466171,8.9e-07,1873.4,1873.1,2.66923]
[1742125466471,8.9e-07,1873.4,1873.3,1.06761]
[1742125466963,8.9e-07,1873.4,1873.2,1.06762]
[1742125467168,5.54160089,1873.4,1873.3,1.06761]
[1742125467363,5.54160089,1873.4,1873.1,4.208]
[1742125467672,17.8154,1873.3,1873.2,1.06767]
[1742125468268,21.0232,1873.3,1873.0,0.00801089]
[1742125468475,21.0232,1873.3,1873.1,1.06772]
[1742125468671,21.0232,1873.3,1873.0,2.67740089]
[1742125468972,17.8154,1873.3,1873.2,1.06767]
[1742125469364,10.6022,1873.3,1873.2,1.06767]
[1742125469567,8.9e-07,1873.4,1873.3,1.06761]
[1742125471169,8.9e-07,1873.4,1873.3,4.27541]
[1742125472671,8.9e-07,1873.4,1873.3,1.06761]
[1742125472868,8.9e-07,1873.4,1873.2,5.27563]
[1742125473167,8.9e-07,1873.4,1873.1,1.0677]
[1742125473366,4.27535089,1873.4,1873.1,1.06772]
[1742125473679,3.2078,1873.2,1873.0,1.07577089]
[1742125473869,3.2078,1873.2,1873.1,1.06772]
[1742125474270,8.9e-07,1873.4,1873.3,1.06761]
[1742125478988,8.9e-07,1873.4,1873.3,1.06761]
[1742125479381,8.9e-07,1873.4,1873.2,1.06762]
[1742125479577,3.2078,1873.3,1873.2,1.06762]
[1742125479883,3.2078,1873.3,1873.2,1.06767]
[1742125482074,9.9148,1873.3,1873.0,0.00801089]
[1742125482281,3.2078,1873.1,1873.0,0.00801089]
[1742125482484,4.27552,1873.1,1873.0,0.00801089]
[1742125482678,5.7078,1873.1,1873.0,1.06778]
[1742125482884,5.7078,1873.1,1872.9,1.06781]
[1742125483085,4.27558,1873.1,1872.9,1.06781]
[1742125483483,4.207,1873.0,1872.4,2.67019]
[1742125483686,3.2078,1872.6,1872.5,1.06806]
[1742125483891,3.2078,1872.6,1872.2,2.67053]
[1742125484079,3.2078,1872.4,1872.3,1.06818]
[1742125484696,4.27592,1872.4,1872.3,1.06818]
[1742125484989,3.2078,1872.4,1872.3,1.06818]
[1742125485178,5.7078,1872.4,1871.7,32.8108]
[1742125485383,3.2078,1872.2,1871.8,2.67117]
[1742125485583,3.2078,1872.2,1872.1,1.06829]
[1742125485584,3.21581089,1872.2,1872.1,1.06829]
[1742125487594,0.00801089,1872.2,1872.1,1.06829]
[1742125488197,3.21581089,1872.2,1872.1,1.06829]
[1742125488996,0.00801089,1872.2,1872.1,1.06829]
[1742125491789,0.00801089,1872.2,1872.1,5.27629]
[1742125493693,0.00801089,1872.2,1872.1,8.48409]
[1742125494790,0.00801089,1872.2,1872.1,4.27609]
[1742125495496,0.00801089,1872.2,1872.1,1.06829]
[1742125496198,11.29871089,1872.2,1872.1,1.06829]
[1742125497797,0.00801089,1872.2,1872.1,4.27609]
[1742125497996,0.00801089,1872.2,1872.1,10.07899]
[1742125498393,0.00801089,1872.2,1871.9,3.2078]
[1742125498604,16.38151089,1872.2,1872.1,1.06829]
[1742125499704,16.38151089,1872.2,1871.9,18.5477]
[1742125499997,3.2078,1872.0,1871.5,3.2078]
[1742125500187,19.05217089,1872.2,1871.6,1.06854]
[1742125500188,3.2078,1871.8,1871.6,1.06854]
[1742125500394,11.0393,1871.7,1871.5,11.2848]
[1742125500695,16.7809,1871.7,1871.4,4.209]
[1742125500890,3.2078,1871.6,1871.5,12.35339]
[1742125501086,14.2471,1871.6,1871.5,12.35339]
[1742125501295,14.2471,1871.6,1871.1,32.8258]
[1742125501497,3.2078,1871.4,1870.6,2.67288]
[1742125501693,1.06883,1871.2,1870.7,13.95753]
[1742125501894,20.524,1871.6,1871.1,2.67217]
[1742125502094,11.0393,1871.4,1871.3,1.06871]
[1742125502599,11.0393,1871.4,1871.2,11.2848]
[1742125502600,0.00801089,1871.5,1871.2,15.4928]
[1742125502803,0.00801089,1871.5,1871.4,1.06869]
[1742125502992,0.00801089,1871.5,1871.4,12.30469]
[1742125504206,0.00801089,1871.5,1871.3,1.06872]
[1742125504407,16.72921089,1871.5,1871.4,1.06869]
[1742125504604,19.93701089,1871.5,1870.9,7.4168]
[1742125504801,21.00570089,1871.5,1871.1,1.06886]
[1742125505108,7.2836,1871.4,1871.3,1.06875]
[1742125505294,18.6866,1871.4,1871.0,13.90828]
[1742125505500,19.75531,1871.4,1871.1,1.06882]
[1742125505705,18.6866,1871.4,1871.2,1.06879]
[1742125505906,18.6866,1871.4,1871.1,1.06883]
[1742125506204,4.27659,1871.3,1871.0,11.236]
[1742125506406,11.6234,1871.2,1871.1,1.06886]
[1742125507610,11.6234,1871.2,1871.0,11.236]
[1742125507909,11.6234,1871.2,1871.1,1.06886]
[1742125508100,7.2836,1871.4,1871.3,1.06875]
[1742125508401,18.907,1871.4,1871.2,11.2247]
[1742125508602,22.1148,1871.4,1870.9,5.88025]
[1742125508800,22.1148,1871.4,1871.0,1.06889]
[1742125508994,23.18351,1871.4,1871.2,1.06879]
[1742125509200,22.1148,1871.4,1871.1,1.06883]
[1742125509509,1.06876,1871.3,1871.1,1.06883]
[1742125509708,10.6791,1871.2,1871.0,10.768]
[1742125509900,14.95572,1871.2,1871.0,1.06889]
[1742125510100,5.8382,1871.1,1870.9,1.06893]
[1742125510409,13.8869,1871.0,1870.9,1.06893]
[1742125510596,13.8869,1871.0,1870.6,10.768]
[1742125510799,3.2078,1870.8,1870.4,3.2078]
[1742125510999,1.06924,1870.5,1870.3,1.06931]
[1742125511195,20.8221,1870.4,1870.3,1.06932]
[1742125511506,20.8221,1870.4,1869.8,5.88177]
[1742125511507,20.8221,1870.4,1869.9,13.44184]
[1742125511694,20.8221,1870.4,1870.3,1.06932]
[1742125511899,1.06939,1870.2,1869.9,10.768]
[1742125512105,11.0774,1870.1,1870.0,1.06949]
[1742125512308,3.2078,1870.4,1870.1,1.06944]
[1742125512509,14.2852,1870.4,1870.3,1.06932]
[1742125512711,14.2852,1870.4,1869.9,5.88164]
[1742125512906,4.27719,1870.2,1869.9,1.06952]
[1742125513103,19.08204,1870.1,1869.8,11.7072]
[1742125513307,19.08204,1870.1,1869.5,2.67445]
[1742125513308,22.28985,1870.1,1869.5,2.67445]
[1742125513509,26.77,1870.1,1869.9,1.06952]
[1742125513710,27.83944,1870.1,1869.5,11.7072]
[1742125514012,26.77,1870.1,1869.7,1.06961]
[1742125514210,1.06953,1870.0,1869.6,1.0697]
[1742125514408,12.14695,1869.9,1869.5,12.77696]
[1742125514714,12.14695,1869.9,1869.6,1.06968]
[1742125514715,14.2852,1869.9,1869.6,1.06968]
[1742125514911,14.2852,1869.9,1869.5,12.77695]
[1742125514912,15.35477,1869.9,1869.5,12.77695]
[1742125515211,1.06963,1869.8,1869.4,4.27759]
[1742125515408,10.8454,1869.7,1869.5,1.06974]
[1742125515707,10.8454,1869.7,1869.5,10.8397]
[1742125516105,1.06974,1869.6,1869.2,4.27772]
[1742125516301,11.9152,1869.5,1869.2,3.2078]
[1742125516505,17.85,1869.5,1869.2,3.2078]
[1742125517019,18.92780089,1869.5,1869.2,3.2078]
[1742125517513,18.92781089,1869.5,1869.2,3.2078]
[1742125517715,1.06986,1869.4,1869.0,15.11754]
[1742125517916,10.8454,1869.3,1869.0,15.11754]
[1742125518208,10.8454,1869.3,1869.2,1.06995]
[1742125518409,0.00801089,1869.5,1869.1,4.212]
[1742125518613,8.48902,1870.5,1869.5,2.67431]
[1742125518913,11.2327,1870.4,1870.1,1.06939]
[1742125519214,11.2327,1870.4,1870.2,1.06938]
[1742125519400,11.2327,1870.4,1870.2,10.5839]
[1742125519606,11.2327,1870.4,1870.2,11.65324]
[1742125519813,3.2078,1870.3,1870.1,0.00801089]
[1742125520005,11.2327,1870.2,1870.1,0.00801089]
[1742125520517,19.00658,1870.2,1870.1,0.00801089]
[1742125520706,17.9372,1870.2,1870.1,0.00801089]
[1742125521008,5.826,1870.4,1870.1,3.21581089]
[1742125521316,11.5258,1870.2,1870.1,0.00801089]
[1742125521514,11.5258,1870.2,1870.1,1.07745089]
[1742125521706,11.5258,1870.2,1870.1,4.28525089]
[1742125522009,0.00801089,1870.5,1870.1,0.00801089]
[1742125522218,11.5258,1870.2,1870.1,1.07745089]
[1742125522416,15.4554,1870.4,1870.2,1.06938]
[1742125522417,12.2476,1870.4,1870.2,1.06938]
[1742125522713,11.5258,1870.3,1870.1,1.07741089]
[1742125522913,11.5258,1870.3,1870.2,1.06938]
[1742125523110,11.5258,1870.3,1870.2,11.85078]
[1742125523412,11.5258,1870.3,1870.1,0.00801089]
[1742125523605,14.7336,1870.3,1870.1,1.07744089]
[1742125523801,14.7336,1870.3,1870.2,1.06938]
[1742125524005,11.5258,1870.3,1870.2,1.06938]
[1742125524207,6.7045,1870.4,1870.3,1.06932]
[1742125524410,6.7045,1870.4,1870.2,12.73664]
[1742125524605,10.9169,1870.3,1870.2,12.73664]
[1742125526210,10.9169,1870.3,1870.1,1.07740089]
[1742125526515,14.1247,1870.3,1870.1,0.00801089]
[1742125526712,4.212,1870.2,1869.3,3.2078]
[1742125526910,4.27742,1869.8,1869.5,1.06975]
[1742125527210,23.4937,1869.7,1869.5,1.06975]
[1742125527409,3.2078,1869.6,1869.3,11.5209]
[1742125527613,10.5813,1869.5,1869.4,1.06984]
[1742125527810,10.5813,1869.5,1869.1,14.7287]
[1742125528011,3.2078,1869.4,1869.1,11.5209]
[1742125528214,10.5813,1869.3,1868.9,3.28777628]
[1742125528513,3.2078,1869.0,1868.3,0.01168717]
[1742125528717,2.67631,1868.2,1867.5,16.49470667]
[1742125529014,3.2078,1867.6,1867.5,16.49470667]
[1742125529407,3.2078,1867.9,1867.2,14.19857]
[1742125529606,3.2078,1867.4,1867.3,1.07104]
[1742125529815,4.29301089,1868.0,1867.9,1.07069]
[1742125529816,5.83401089,1868.0,1867.9,1.07069]
[1742125530012,5.83401089,1868.0,1867.7,2.67698]
[1742125530013,3.2078,1868.8,1868.3,2.67612]
[1742125530220,10.5813,1868.7,1868.6,1.07029]
[1742125530512,10.5813,1868.7,1868.1,5.88426]
[1742125530714,3.2078,1868.5,1868.2,11.291]
[1742125531010,10.714,1868.4,1868.3,1.07047]
[1742125531410,16.4218,1868.4,1868.2,0.00803255]
[1742125531718,16.4218,1868.4,1867.7,1.07077]
[1742125531719,20.9118,1868.4,1867.7,1.07077]
[1742125531917,3.2078,1867.9,1867.7,11.291]
[1742125532110,3.2078,1867.9,1867.8,1.07075]
[1742125532419,3.2078,1867.9,1867.3,3.2078]
[1742125532717,3.2078,1867.7,1867.1,5.88565]
[1742125532904,3.2078,1867.7,1867.6,1.07087]
[1742125533718,3.2078,1868.8,1867.8,2.67683]
[1742125534018,11.108,1868.4,1867.9,16.1779]
[1742125534318,0.00803255,1868.5,1868.1,3.2078]
[1742125534518,0.00803255,1868.5,1867.9,18.85451]
[1742125534519,3.21583255,1868.5,1868.2,11.6599]
[1742125535019,0.00803255,1868.5,1868.4,1.07041]
[1742125535217,3.21583255,1868.5,1868.0,4.584]
[1742125535514,11.108,1868.4,1868.2,11.6599]
[1742125535713,3.2078,1868.3,1868.2,12.73041]
[1742125535910,3.2078,1868.3,1868.0,2.67659]
[1742125535911,3.2078,1868.3,1867.8,6.8186]
[1742125536105,3.2078,1868.2,1868.1,11.6599]
[1742125536308,3.21583255,1868.5,1868.1,12.73048]
[1742125536506,3.2078,1868.2,1868.1,11.6599]
[1742125536718,3.2078,1868.2,1867.9,1.07064]
[1742125536908,3.2078,1868.0,1867.1,3.2078]
[1742125537108,3.2078,1867.5,1867.3,11.6765]
[1742125537315,3.2078,1867.7,1867.6,1.07087]
[1742125537516,3.2078,1867.8,1867.2,14.28341]
[1742125537719,10.6457,1867.9,1867.6,1.07085]
[1742125538024,3.2078,1867.8,1867.2,14.28341]
[1742125538320,7.8458,1868.0,1867.5,2.67732]
[1742125538612,3.2078,1867.8,1867.3,2.6776]
[1742125538806,10.6457,1867.7,1867.3,4.624]
[1742125539008,3.2078,1867.6,1867.4,1.07097]
[1742125539222,10.6457,1867.5,1867.4,1.07098]
[1742125539613,14.1363,1867.8,1867.4,2.67746]
[1742125540110,14.1363,1867.8,1867.7,1.07081]
[1742125540413,3.2078,1868.0,1867.7,1.07081]
[1742125540715,10.9285,1868.1,1868.0,1.07064]
[1742125540912,3.2078,1868.2,1868.1,1.07058]
[1742125541107,3.2078,1868.4,1868.1,1.07058]
[1742125541312,3.2078,1868.4,1868.3,1.07047]
[1742125542610,3.2078,1869.0,1868.9,1.07012]
[1742125542813,7.1508,1869.2,1869.1,1.07001]
[1742125543215,3.2078,1869.3,1869.2,1.06995]
[1742125543514,3.2078,1869.3,1869.0,2.67516]
[1742125543515,3.2078,1869.5,1869.1,2.67495]
[1742125543724,3.2078,1869.5,1869.4,1.06984]
[1742125543907,3.21583255,1869.5,1869.4,1.06984]
[1742125544114,0.00803255,1869.5,1869.4,1.06984]
[1742125544813,0.00803255,1869.5,1869.4,5.67784]
[1742125545319,3.2078,1870.0,1869.9,1.06955]
[1742125545520,1.0697,1869.7,1869.4,1.06983]
[1742125545709,3.2078,1869.5,1869.1,0.00803255]
[1742125545916,3.2078,1869.5,1869.2,2.67488]
[1742125546223,3.2078,1869.5,1869.4,1.06984]
[1742125546417,5.826,1870.0,1869.6,1.06972]
[1742125546616,11.1859,1869.9,1869.8,1.06961]
[1742125547022,0.00803255,1870.0,1869.9,1.06955]
[1742125547421,3.21583255,1870.0,1869.9,1.06955]
[1742125547717,3.21583255,1870.0,1869.2,12.54581]
[1742125547916,3.21583255,1870.0,1869.6,1.06972]
[1742125547917,3.2078,1869.7,1869.6,1.06972]
[1742125548117,3.2078,1869.7,1869.4,1.06979]
[1742125548317,11.1859,1869.6,1869.1,4.63003255]
[1742125548518,11.1859,1869.6,1869.1,7.30505255]
[1742125548715,3.2078,1869.4,1869.3,1.06989]
[1742125548919,14.3937,1869.6,1869.4,1.06981]
[1742125549117,1.06991,1869.3,1869.1,0.00803255]
[1742125549324,11.3382,1869.2,1869.1,0.00803255]
[1742125549823,11.3382,1869.2,1869.1,1.07804255]
[1742125550319,11.3382,1869.2,1869.1,0.00803255]
[1742125550519,1.07021,1868.8,1868.5,1.07034]
[1742125550720,11.3382,1868.7,1868.3,13.36027]
[1742125551022,3.2078,1868.6,1868.5,1.07031]
[1742125551822,3.2078,1868.8,1868.7,1.07024]
[1742125552125,0.00803255,1868.9,1868.8,1.07018]
[1742125554225,12.46568255,1868.9,1868.4,3.21583255]
[1742125554521,3.2078,1868.7,1868.4,0.00803255]
[1742125554723,3.2078,1868.5,1868.4,0.00803255]
[1742125554919,3.2078,1868.5,1868.4,1.07842255]
[1742125555120,11.1785,1868.6,1868.5,1.07035]
[1742125556518,13.0094,1868.8,1868.7,1.07024]
[1742125556826,11.1785,1868.8,1868.7,1.07024]
[1742125557325,11.1785,1868.8,1868.4,2.68392255]
[1742125557524,11.1785,1868.8,1868.6,1.07029]
[1742125557525,3.2078,1868.7,1868.6,1.07029]
[1742125558427,3.2078,1868.7,1868.4,0.00803255]
[1742125558625,10.6421,1868.6,1868.5,1.07035]
[1742125558829,13.8499,1868.6,1868.5,1.07035]
[1742125559232,10.6421,1868.6,1868.5,1.07035]
[1742125559427,10.6421,1868.6,1868.4,0.00803255]
[1742125559627,13.8499,1868.6,1868.5,1.07035]
[1742125559823,13.8499,1868.6,1868.4,0.00803255]
[1742125560219,13.8499,1868.6,1868.5,1.07035]
[1742125560423,13.8499,1868.6,1868.4,0.00803255]
[1742125560623,13.8499,1868.6,1868.4,1.07839255]
[1742125561120,22.25473,1868.6,1868.4,0.00803255]
[1742125561526,21.1844,1868.6,1868.4,0.00803255]
[1742125561923,22.25474,1868.6,1868.4,0.00803255]
[1742125562430,1.07056,1868.2,1867.6,5.88488]
[1742125562731,14.8675,1868.1,1868.0,1.07064]
[1742125563529,14.8675,1868.1,1867.9,1.07065]
[1742125563731,14.8675,1868.1,1868.0,1.07064]
[1742125564227,14.8675,1868.1,1867.6,10.46097]
[1742125564529,3.2078,1867.8,1867.7,4.568]
[1742125564727,3.2078,1867.8,1867.6,1.07083]
[1742125565029,10.68,1867.7,1867.6,1.07083]
[1742125565227,0.00803255,1867.9,1867.8,1.07075]
[1742125565730,9.0338,1868.8,1868.5,1.07034]
[1742125566030,3.2078,1868.6,1868.5,1.07035]
[1742125566223,6.9041,1868.8,1868.3,1.07047]
[1742125566224,10.68,1868.7,1868.6,1.07029]
[1742125566530,3.2078,1869.2,1868.7,1.07024]
[1742125566729,10.9419,1869.0,1868.9,1.07012]
[1742125567034,0.00803255,1869.1,1869.0,1.07006]
[1742125567533,3.21583255,1869.1,1868.9,1.07007]
[1742125567733,10.9419,1869.0,1868.8,0.00803255]
[1742125567922,1.07022,1868.8,1868.4,5.63637]
[1742125568122,3.2078,1868.5,1868.4,1.07041]
[1742125568324,17.846,1868.7,1868.6,1.07029]
[1742125568525,21.0538,1868.7,1868.6,1.07029]
[1742125568835,21.0538,1868.7,1868.5,1.07031]
[1742125569132,21.0538,1868.7,1868.2,5.8841]
[1742125569133,21.0538,1868.7,1868.6,1.07029]
[1742125569330,10.9419,1868.7,1868.6,1.07029]
[1742125569530,3.2078,1868.9,1868.8,1.07018]
[1742125569834,14.5023,1868.9,1868.8,1.07018]
[1742125570136,11.2945,1868.9,1868.8,1.07018]
[1742125570632,14.5023,1868.9,1868.7,12.71262]
[1742125570821,14.5023,1868.9,1868.8,1.07018]
[1742125571222,14.5023,1868.9,1868.7,11.6424]
[1742125571631,14.5023,1868.9,1868.8,1.07018]
[1742125571829,14.5023,1868.9,1868.7,11.6424]
[1742125572028,14.5023,1868.9,1868.3,2.67617]
[1742125572335,3.2078,1868.8,1868.7,1.07024]
[1742125572938,3.2078,1868.8,1868.2,4.56]
[1742125573230,3.2078,1868.6,1868.4,1.07036]
[1742125573438,11.2645,1868.5,1868.4,1.07036]
[1742125573634,11.2645,1868.5,1868.3,10.9579]
[1742125573835,3.2078,1868.4,1868.1,11.8575]
[1742125574035,11.2645,1868.3,1868.2,12.02842]
[1742125574230,6.9934,1868.6,1868.5,1.07035]
[1742125574836,18.2579,1868.6,1868.5,1.07035]
[1742125575040,18.2579,1868.6,1868.4,12.02828]
[1742125575337,3.2078,1868.5,1868.1,11.8545]
[1742125575542,3.2078,1868.3,1868.2,12.02839]
[1742125576035,11.2645,1868.4,1868.3,1.07047]
[1742125576428,3.2078,1868.6,1868.5,1.07035]
[1742125576631,14.0402,1868.8,1868.7,1.07024]
[1742125577333,1.07024,1868.7,1868.3,3.2078]
[1742125577529,10.8324,1868.6,1868.5,1.07035]
[1742125578332,14.0402,1868.6,1867.9,10.406]
[1742125578534,3.2078,1868.4,1868.3,1.07041]
[1742125578732,3.2078,1868.4,1868.2,12.09618]
[1742125578928,10.6005,1868.3,1867.9,17.6437]
[1742125579130,10.6005,1868.3,1868.1,12.47285]
[1742125579333,10.6005,1868.3,1868.2,1.07052]
[1742125579735,10.6005,1868.3,1868.1,11.4023]
[1742125579736,7.7698,1868.8,1868.3,2.67609]
[1742125579931,10.6005,1868.7,1868.6,1.07029]
[1742125580132,10.6005,1868.7,1868.4,11.4023]
[1742125580441,10.6005,1868.7,1868.4,12.47266]
[1742125580636,10.6005,1868.7,1868.5,1.07033]
[1742125580840,10.6005,1868.7,1868.6,1.07029]
[1742125581336,13.8083,1868.7,1868.4,11.4023]
[1742125581536,13.8083,1868.7,1868.6,1.07029]
[1742125582132,10.6005,1868.7,1868.6,1.07029]
[1742125582641,9.9467,1868.9,1868.8,1.07018]
[1742125582935,3.21583255,1869.1,1869.0,1.07006]
[1742125583544,3.21583255,1869.1,1868.9,1.07007]
[1742125583742,3.21583255,1869.1,1869.0,1.07006]
[1742125584037,3.21583255,1869.1,1868.9,1.07009]
[1742125584241,11.6068,1869.0,1868.9,1.07009]
[1742125584543,12.67687,1869.0,1868.7,16.43651]
[1742125584740,3.2078,1868.9,1868.8,1.07015]
[1742125585043,11.6068,1869.0,1868.9,1.07012]
[1742125585235,3.2078,1869.0,1868.9,1.07012]
[1742125586839,7.19243255,1869.1,1868.8,10.608]
[1742125586840,7.19243255,1869.1,1869.0,1.07006]
[1742125587037,0.00803255,1869.1,1869.0,1.07006]
[1742125588034,2.55e-06,1869.1,1869.0,6.77786]
[1742125588646,2.55e-06,1869.1,1869.0,17.91526]
[1742125590238,2.55e-06,1869.1,1869.0,18.34436296]
[1742125590642,2.55e-06,1869.1,1869.0,17.91526]
[1742125590938,2.55e-06,1869.1,1869.0,16.71446]
[1742125592537,2.55e-06,1869.1,1869.0,12.20746]
[1742125592839,1.07001255,1869.1,1868.9,4.52003255]
[1742125593044,3.2078,1869.0,1868.9,0.00803255]
[1742125593345,3.2078,1869.0,1868.9,1.07815255]
[1742125593545,5.40790255,1869.1,1869.0,1.07006]
[1742125594045,5.40790255,1869.1,1869.0,12.78376]
[1742125594240,2.55e-06,1869.1,1869.0,12.78376]
[1742125595249,2.55e-06,1869.1,1869.0,17.28276]